[Event "Titled Tuesday Blitz August 22 Late 2023"]
[White "Korchmar, Vasiliy"]
[Black "Mickiewicz, Piotr"]
[WhiteFideId "24131750"]
[BlackFideId "1114891"]
[WhiteElo "2661"]
[BlackElo "2505"]
[Result "1-0"]
[Round "6"]
[TimeControl "180+1"]
[Date "2023.08.22"]
[WhiteClock "0:00:11"]
[BlackClock "0:00:09"]
[Board "74"]

1. e4 {[%clk 0:03:00]}  c6 {[%clk 0:02:59]} 2. d4 {[%clk 0:03:01]}  d5 {[%clk 0:03:00]} 3. exd5 {[%clk 0:03:02]}  cxd5 {[%clk 0:02:59]} 4. Bd3 {[%clk 0:03:02]}  Nc6 {[%clk 0:02:57]} 5. c3 {[%clk 0:03:03]}  Nf6 {[%clk 0:02:56]} 6. h3 {[%clk 0:03:04]}  g6 {[%clk 0:02:52]} 7. Nf3 {[%clk 0:03:03]}  Bf5 {[%clk 0:02:52]} 8. Bf4 {[%clk 0:03:03]}  Bxd3 {[%clk 0:02:43]} 9. Qxd3 {[%clk 0:03:04]}  Bg7 {[%clk 0:02:42]} 10. O-O {[%clk 0:03:05]}  O-O {[%clk 0:02:41]} 11. Nbd2 {[%clk 0:03:05]}  Rc8 {[%clk 0:02:40]} 12. Rfe1 {[%clk 0:03:06]}  a6 {[%clk 0:02:32]} 13. Nb3 {[%clk 0:02:46]}  Nd7 {[%clk 0:02:32]} 14. a4 {[%clk 0:02:43]}  Re8 {[%clk 0:01:52]} 15. a5 {[%clk 0:02:34]}  f6 {[%clk 0:01:49]} 16. Bg3 {[%clk 0:02:29]}  e6 {[%clk 0:01:48]} 17. Re2 {[%clk 0:02:26]}  Qe7 {[%clk 0:01:45]} 18. Rae1 {[%clk 0:02:25]}  Qf7 {[%clk 0:01:44]} 19. Bd6 {[%clk 0:02:20]}  Na7 {[%clk 0:01:42]} 20. h4 {[%clk 0:01:32]}  Nb5 {[%clk 0:01:41]} 21. Bg3 {[%clk 0:01:32]}  Rc6 {[%clk 0:01:26]} 22. Nfd2 {[%clk 0:01:31]}  Nd6 {[%clk 0:01:25]} 23. Bxd6 {[%clk 0:01:26]}  Rxd6 {[%clk 0:01:24]} 24. c4 {[%clk 0:01:27]}  e5 {[%clk 0:00:59]} 25. dxe5 {[%clk 0:01:16]}  Nxe5 {[%clk 0:00:59]} 26. Qg3 {[%clk 0:01:09]}  Red8 {[%clk 0:00:55]} 27. c5 {[%clk 0:00:52]}  R6d7 {[%clk 0:00:55]} 28. Nd4 {[%clk 0:00:51]}  Rc8 {[%clk 0:00:32]} 29. b4 {[%clk 0:00:50]}  Bh6 {[%clk 0:00:27]} 30. N2f3 {[%clk 0:00:47]}  Nd3 {[%clk 0:00:24]} 31. Rb1 {[%clk 0:00:28]}  Kh8 {[%clk 0:00:22]} 32. Qg4 {[%clk 0:00:19]}  Rcd8 {[%clk 0:00:19]} 33. g3 {[%clk 0:00:15]}  Re8 {[%clk 0:00:17]} 34. Rb3 {[%clk 0:00:09]}  Rde7 {[%clk 0:00:16]} 35. Rxe7 {[%clk 0:00:08]}  Qxe7 {[%clk 0:00:14]} 36. Rxd3 {[%clk 0:00:08]}  Qe4 {[%clk 0:00:14]} 37. Qxe4 {[%clk 0:00:04]}  dxe4 {[%clk 0:00:15]} 38. Rd1 {[%clk 0:00:05]}  exf3 {[%clk 0:00:15]} 39. Nxf3 {[%clk 0:00:05]}  Bf8 {[%clk 0:00:14]} 40. Rd7 {[%clk 0:00:05]}  Re4 {[%clk 0:00:14]} 41. Rxb7 {[%clk 0:00:05]}  Rc4 {[%clk 0:00:14]} 42. Kg2 {[%clk 0:00:05]}  Kg8 {[%clk 0:00:14]} 43. Rb6 {[%clk 0:00:05]}  Rc3 {[%clk 0:00:14]} 44. Rxa6 {[%clk 0:00:05]}  Rc4 {[%clk 0:00:15]} 45. Rb6 {[%clk 0:00:05]}  h5 {[%clk 0:00:14]} 46. a6 {[%clk 0:00:06]}  g5 {[%clk 0:00:14]} 47. hxg5 {[%clk 0:00:07]}  fxg5 {[%clk 0:00:15]} 48. Nxg5 {[%clk 0:00:07]}  h4 {[%clk 0:00:14]} 49. gxh4 {[%clk 0:00:07]}  Rxh4 {[%clk 0:00:14]} 50. Nf3 {[%clk 0:00:08]}  Rg4+ {[%clk 0:00:14]} 51. Kf1 {[%clk 0:00:08]}  Rg7 {[%clk 0:00:14]} 52. Rb7 {[%clk 0:00:08]}  Rg6 {[%clk 0:00:15]} 53. a7 {[%clk 0:00:08]}  Ra6 {[%clk 0:00:16]} 54. b5 {[%clk 0:00:09]}  Ra1+ {[%clk 0:00:15]} 55. Kg2 {[%clk 0:00:09]}  Bxc5 {[%clk 0:00:15]} 56. Rb8+ {[%clk 0:00:10]}  Kf7 {[%clk 0:00:09]} 57. a8=Q {[%clk 0:00:11]} 1-0


[Site "https://www.chess.com"]

[Event "Titled Tuesday Blitz August 22 Late 2023"]
[White "Sanhueza, Cristian"]
[Black "Filipascu"]
[WhiteFideId "116815"]
[WhiteElo "2484"]
[BlackElo "2652"]
[Result "1-0"]
[Round "6"]
[TimeControl "180+1"]
[Date "2023.08.22"]
[WhiteClock "0:00:50"]
[BlackClock "0:01:05"]
[Board "76"]

1. e4 {[%clk 0:02:53]}  g6 {[%clk 0:03:00]} 2. d4 {[%clk 0:02:52]}  Bg7 {[%clk 0:03:00]} 3. Be3 {[%clk 0:02:53]}  d6 {[%clk 0:02:56]} 4. Nc3 {[%clk 0:02:53]}  a6 {[%clk 0:02:55]} 5. Qd2 {[%clk 0:02:53]}  b5 {[%clk 0:02:55]} 6. Nf3 {[%clk 0:02:53]}  Bb7 {[%clk 0:02:55]} 7. Bd3 {[%clk 0:02:54]}  Nd7 {[%clk 0:02:54]} 8. h3 {[%clk 0:02:54]}  c5 {[%clk 0:02:53]} 9. O-O {[%clk 0:02:48]}  cxd4 {[%clk 0:02:41]} 10. Nxd4 {[%clk 0:02:44]}  Ngf6 {[%clk 0:02:41]} 11. a3 {[%clk 0:02:36]}  O-O {[%clk 0:02:41]} 12. Rae1 {[%clk 0:02:34]}  Rc8 {[%clk 0:02:41]} 13. f4 {[%clk 0:02:33]}  Nb6 {[%clk 0:02:37]} 14. f5 {[%clk 0:02:27]}  Nc4 {[%clk 0:02:36]} 15. Bxc4 {[%clk 0:02:27]}  Rxc4 {[%clk 0:02:37]} 16. Bg5 {[%clk 0:02:09]}  Nxe4 {[%clk 0:02:31]} 17. Nxe4 {[%clk 0:01:24]}  Rxd4 {[%clk 0:02:30]} 18. Qf4 {[%clk 0:01:20]}  Qa8 {[%clk 0:02:13]} 19. f6 {[%clk 0:01:15]}  Bxe4 {[%clk 0:01:56]} 20. fxg7 {[%clk 0:01:14]}  Kxg7 {[%clk 0:01:51]} 21. Bh6+ {[%clk 0:01:13]}  Kg8 {[%clk 0:01:47]} 22. Bxf8 {[%clk 0:01:13]}  Qd5 {[%clk 0:01:14]} 23. Bxe7 {[%clk 0:00:51]}  Bxg2 {[%clk 0:01:11]} 24. Qh6 {[%clk 0:00:51]}  Bxf1 {[%clk 0:01:05]} 25. Qf8# {[%clk 0:00:50]} 1-0


[Site "https://www.chess.com"]

[Event "Titled Tuesday Blitz August 22 Late 2023"]
[White "Buchenau, Frank"]
[Black "Pham, Le Thao Nguyen"]
[WhiteFideId "4604350"]
[BlackFideId "12401226"]
[WhiteElo "2466"]
[BlackElo "2650"]
[Result "0-1"]
[Round "6"]
[TimeControl "180+1"]
[Date "2023.08.22"]
[WhiteClock "0:00:00"]
[BlackClock "0:00:46"]
[Board "77"]

1. e4 {[%clk 0:03:00]}  c6 {[%clk 0:02:58]} 2. Nf3 {[%clk 0:03:00]}  d5 {[%clk 0:02:59]} 3. Nc3 {[%clk 0:02:59]}  dxe4 {[%clk 0:02:59]} 4. Nxe4 {[%clk 0:02:59]}  Nf6 {[%clk 0:03:00]} 5. Ng3 {[%clk 0:02:59]}  Bg4 {[%clk 0:02:58]} 6. h3 {[%clk 0:02:56]}  Bh5 {[%clk 0:02:53]} 7. Nxh5 {[%clk 0:02:54]}  Nxh5 {[%clk 0:02:54]} 8. d4 {[%clk 0:02:51]}  e6 {[%clk 0:02:51]} 9. Bd3 {[%clk 0:02:46]}  Nf6 {[%clk 0:02:50]} 10. O-O {[%clk 0:02:45]}  Nbd7 {[%clk 0:02:51]} 11. Re1 {[%clk 0:02:44]}  Be7 {[%clk 0:02:51]} 12. c4 {[%clk 0:02:43]}  O-O {[%clk 0:02:51]} 13. Bd2 {[%clk 0:02:40]}  a5 {[%clk 0:02:50]} 14. a3 {[%clk 0:02:39]}  a4 {[%clk 0:02:42]} 15. Bc3 {[%clk 0:02:39]}  Re8 {[%clk 0:02:39]} 16. Ne5 {[%clk 0:02:31]}  Nxe5 {[%clk 0:02:02]} 17. dxe5 {[%clk 0:02:30]}  Nd7 {[%clk 0:02:01]} 18. Qg4 {[%clk 0:02:21]}  Nf8 {[%clk 0:01:42]} 19. Rad1 {[%clk 0:02:20]}  Qb6 {[%clk 0:01:42]} 20. h4 {[%clk 0:02:00]}  Bc5 {[%clk 0:01:43]} 21. Qg3 {[%clk 0:01:51]}  Red8 {[%clk 0:01:39]} 22. Bc2 {[%clk 0:01:49]}  Bd4 {[%clk 0:01:25]} 23. h5 {[%clk 0:01:29]}  Bxc3 {[%clk 0:01:20]} 24. Qxc3 {[%clk 0:01:28]}  h6 {[%clk 0:01:20]} 25. Rxd8 {[%clk 0:01:24]}  Qxd8 {[%clk 0:01:14]} 26. Rd1 {[%clk 0:01:22]}  Qg5 {[%clk 0:01:13]} 27. c5 {[%clk 0:00:53]}  Qxh5 {[%clk 0:01:09]} 28. Rd4 {[%clk 0:00:36]}  Qxe5 {[%clk 0:01:02]} 29. Bxa4 {[%clk 0:00:21]}  Ra5 {[%clk 0:00:50]} 30. Bc2 {[%clk 0:00:04]}  Rxc5 {[%clk 0:00:47]} 31. Qd3 {[%clk 0:00:00]}  Rxc2 {[%clk 0:00:46]} 0-1


[Site "https://www.chess.com"]

[Event "Titled Tuesday Blitz August 22 Late 2023"]
[White "Godzwon, Iwo"]
[Black "Arencibia Monduy, Antonio"]
[WhiteFideId "21802483"]
[BlackFideId "3507939"]
[WhiteElo "2640"]
[BlackElo "2461"]
[Result "0-1"]
[Round "6"]
[TimeControl "180+1"]
[Date "2023.08.22"]
[WhiteClock "0:02:12"]
[BlackClock "0:02:30"]
[Board "79"]

1. c4 {[%clk 0:02:56]}  Nf6 {[%clk 0:02:59]} 2. Nc3 {[%clk 0:02:54]}  e6 {[%clk 0:02:59]} 3. e4 {[%clk 0:02:54]}  d5 {[%clk 0:02:57]} 4. cxd5 {[%clk 0:02:55]}  exd5 {[%clk 0:02:56]} 5. e5 {[%clk 0:02:56]}  d4 {[%clk 0:02:56]} 6. exf6 {[%clk 0:02:55]}  dxc3 {[%clk 0:02:56]} 7. fxg7 {[%clk 0:02:54]}  cxd2+ {[%clk 0:02:54]} 8. Qxd2 {[%clk 0:02:54]}  Qxd2+ {[%clk 0:02:55]} 9. Bxd2 {[%clk 0:02:54]}  Bxg7 {[%clk 0:02:55]} 10. O-O-O {[%clk 0:02:54]}  Be6 {[%clk 0:02:55]} 11. Nf3 {[%clk 0:02:43]}  Nd7 {[%clk 0:02:41]} 12. Kb1 {[%clk 0:02:34]}  O-O-O {[%clk 0:02:40]} 13. Be1 {[%clk 0:02:27]}  Nc5 {[%clk 0:02:34]} 14. Rxd8+ {[%clk 0:02:20]}  Rxd8 {[%clk 0:02:33]} 15. Be2 {[%clk 0:02:21]}  Na4 {[%clk 0:02:30]} 16. b3 {[%clk 0:02:16]}  Bf5+ {[%clk 0:02:30]} 17. Kc1 {[%clk 0:02:12]}  Bb2# {[%clk 0:02:30]} 0-1


[Site "https://www.chess.com"]

[Event "Titled Tuesday Blitz August 22 Late 2023"]
[White "Haszon, David"]
[Black "Almiron, Antonio"]
[WhiteFideId "733610"]
[BlackFideId "3701166"]
[WhiteElo "2451"]
[BlackElo "2638"]
[Result "0-1"]
[Round "6"]
[TimeControl "180+1"]
[Date "2023.08.22"]
[WhiteClock "0:00:10"]
[BlackClock "0:00:14"]
[Board "80"]

1. d4 {[%clk 0:03:00]}  Nf6 {[%clk 0:02:28]} 2. Bf4 {[%clk 0:03:00]}  e6 {[%clk 0:02:27]} 3. Nf3 {[%clk 0:02:55]}  c5 {[%clk 0:02:24]} 4. e3 {[%clk 0:02:54]}  Nc6 {[%clk 0:02:24]} 5. Nbd2 {[%clk 0:02:51]}  d5 {[%clk 0:02:24]} 6. c3 {[%clk 0:02:50]}  Bd6 {[%clk 0:02:21]} 7. Bg3 {[%clk 0:02:48]}  O-O {[%clk 0:02:20]} 8. Bd3 {[%clk 0:02:46]}  b6 {[%clk 0:02:19]} 9. e4 {[%clk 0:02:43]}  Be7 {[%clk 0:02:18]} 10. e5 {[%clk 0:02:39]}  Nh5 {[%clk 0:02:17]} 11. Ng5 {[%clk 0:02:38]}  Bxg5 {[%clk 0:02:10]} 12. Qxh5 {[%clk 0:02:37]}  g6 {[%clk 0:02:10]} 13. Qh3 {[%clk 0:02:14]}  cxd4 {[%clk 0:02:08]} 14. Nf3 {[%clk 0:02:11]}  dxc3 {[%clk 0:01:59]} 15. bxc3 {[%clk 0:02:09]}  Be7 {[%clk 0:01:46]} 16. Qh6 {[%clk 0:01:59]}  Re8 {[%clk 0:01:30]} 17. h4 {[%clk 0:01:46]}  Bf8 {[%clk 0:01:28]} 18. Qf4 {[%clk 0:01:46]}  h6 {[%clk 0:01:05]} 19. h5 {[%clk 0:01:42]}  g5 {[%clk 0:01:03]} 20. Qe3 {[%clk 0:01:40]}  Bg7 {[%clk 0:00:59]} 21. Nd4 {[%clk 0:01:33]}  Bd7 {[%clk 0:00:55]} 22. O-O {[%clk 0:01:30]}  f6 {[%clk 0:00:42]} 23. f4 {[%clk 0:01:18]}  f5 {[%clk 0:00:34]} 24. Rfd1 {[%clk 0:01:01]}  Nxd4 {[%clk 0:00:32]} 25. Qxd4 {[%clk 0:00:57]}  Bf8 {[%clk 0:00:30]} 26. fxg5 {[%clk 0:00:22]}  Bc5 {[%clk 0:00:28]} 27. gxh6 {[%clk 0:00:23]}  Bxd4+ {[%clk 0:00:26]} 28. cxd4 {[%clk 0:00:24]}  Qg5 {[%clk 0:00:26]} 29. Kf2 {[%clk 0:00:22]}  Qxh6 {[%clk 0:00:21]} 30. Kf3 {[%clk 0:00:21]}  Qxh5+ {[%clk 0:00:20]} 31. Kf2 {[%clk 0:00:21]}  Re7 {[%clk 0:00:20]} 32. Rh1 {[%clk 0:00:22]}  Qg6 {[%clk 0:00:16]} 33. Bf4 {[%clk 0:00:21]}  Rh7 {[%clk 0:00:16]} 34. g3 {[%clk 0:00:14]}  Rc8 {[%clk 0:00:15]} 35. Kg2 {[%clk 0:00:13]}  Rc3 {[%clk 0:00:15]} 36. Rxh7 {[%clk 0:00:13]}  Qxh7 {[%clk 0:00:14]} 37. Be2 {[%clk 0:00:13]}  Rc2 {[%clk 0:00:14]} 38. Re1 {[%clk 0:00:11]}  Bb5 {[%clk 0:00:14]} 39. Kf2 {[%clk 0:00:11]}  Qh5 {[%clk 0:00:14]} 40. g4 {[%clk 0:00:10]}  Qxg4 {[%clk 0:00:14]} 41. Rg1 {[%clk 0:00:10]}  Rxe2+ {[%clk 0:00:14]} 42. Kf1 {[%clk 0:00:10]}  Rg2+ {[%clk 0:00:14]} 43. Ke1 {[%clk 0:00:10]}  Qe2# {[%clk 0:00:14]} 0-1


[Site "https://www.chess.com"]

[Event "Titled Tuesday Blitz August 22 Late 2023"]
[White "Balla, Tamas-Kristof"]
[Black "Jakubowski, Krzysztof"]
[WhiteFideId "1208497"]
[BlackFideId "1112848"]
[WhiteElo "2436"]
[BlackElo "2629"]
[Result "0-1"]
[Round "6"]
[TimeControl "180+1"]
[Date "2023.08.22"]
[WhiteClock "0:00:02"]
[BlackClock "0:01:16"]
[Board "81"]

1. e4 {[%clk 0:03:00]}  c5 {[%clk 0:02:56]} 2. c3 {[%clk 0:03:00]}  Nf6 {[%clk 0:02:55]} 3. e5 {[%clk 0:03:00]}  Nd5 {[%clk 0:02:55]} 4. d4 {[%clk 0:03:01]}  cxd4 {[%clk 0:02:54]} 5. Nf3 {[%clk 0:03:01]}  d6 {[%clk 0:02:53]} 6. cxd4 {[%clk 0:03:01]}  Nc6 {[%clk 0:02:52]} 7. Bc4 {[%clk 0:03:01]}  Nb6 {[%clk 0:02:51]} 8. Bb5 {[%clk 0:03:01]}  dxe5 {[%clk 0:02:51]} 9. Nxe5 {[%clk 0:03:02]}  Bd7 {[%clk 0:02:51]} 10. Nxd7 {[%clk 0:03:03]}  Qxd7 {[%clk 0:02:50]} 11. Nc3 {[%clk 0:03:03]}  e6 {[%clk 0:02:50]} 12. O-O {[%clk 0:03:02]}  Rd8 {[%clk 0:02:49]} 13. Be3 {[%clk 0:02:38]}  Be7 {[%clk 0:02:48]} 14. Qg4 {[%clk 0:02:33]}  O-O {[%clk 0:02:48]} 15. Rad1 {[%clk 0:02:18]}  Bf6 {[%clk 0:02:43]} 16. a3 {[%clk 0:02:06]}  a6 {[%clk 0:02:36]} 17. Bd3 {[%clk 0:01:55]}  Ne7 {[%clk 0:02:28]} 18. Bb1 {[%clk 0:01:45]}  Nbd5 {[%clk 0:02:26]} 19. Ne4 {[%clk 0:01:43]}  Qb5 {[%clk 0:01:57]} 20. Qh3 {[%clk 0:01:01]}  Ng6 {[%clk 0:01:46]} 21. Bg5 {[%clk 0:00:53]}  Qxb2 {[%clk 0:01:37]} 22. Nxf6+ {[%clk 0:00:29]}  Nxf6 {[%clk 0:01:35]} 23. Bxf6 {[%clk 0:00:29]}  gxf6 {[%clk 0:01:34]} 24. Qh6 {[%clk 0:00:21]}  Rxd4 {[%clk 0:01:30]} 25. Bxg6 {[%clk 0:00:12]}  hxg6 {[%clk 0:01:27]} 26. Rxd4 {[%clk 0:00:12]}  Qxd4 {[%clk 0:01:26]} 27. Re1 {[%clk 0:00:08]}  Rc8 {[%clk 0:01:24]} 28. h3 {[%clk 0:00:08]}  Rc2 {[%clk 0:01:23]} 29. Re3 {[%clk 0:00:07]}  Qd1+ {[%clk 0:01:17]} 30. Kh2 {[%clk 0:00:07]}  Qd6+ {[%clk 0:01:16]} 31. Kg1 {[%clk 0:00:02]}  Rc1+ {[%clk 0:01:16]} 0-1


[Site "https://www.chess.com"]

[Event "Titled Tuesday Blitz August 22 Late 2023"]
[White "Albertini, Luca"]
[Black "Papayan, Oleg"]
[WhiteFideId "847038"]
[BlackFideId "4193911"]
[WhiteElo "2429"]
[BlackElo "2617"]
[Result "1-0"]
[Round "6"]
[TimeControl "180+1"]
[Date "2023.08.22"]
[WhiteClock "0:00:11"]
[BlackClock "0:00:00"]
[Board "82"]

1. d4 {[%clk 0:03:00]}  Nf6 {[%clk 0:02:58]} 2. c4 {[%clk 0:03:01]}  e6 {[%clk 0:02:59]} 3. Nc3 {[%clk 0:03:01]}  Bb4 {[%clk 0:02:59]} 4. Bg5 {[%clk 0:03:02]}  h6 {[%clk 0:02:58]} 5. Bh4 {[%clk 0:03:01]}  g5 {[%clk 0:02:59]} 6. Bg3 {[%clk 0:03:01]}  Ne4 {[%clk 0:02:56]} 7. Qc2 {[%clk 0:02:59]}  Bxc3+ {[%clk 0:02:55]} 8. bxc3 {[%clk 0:02:59]}  Nxg3 {[%clk 0:02:56]} 9. hxg3 {[%clk 0:02:59]}  b6 {[%clk 0:02:56]} 10. e4 {[%clk 0:02:58]}  d6 {[%clk 0:02:52]} 11. Bd3 {[%clk 0:02:58]}  Bb7 {[%clk 0:02:52]} 12. Ne2 {[%clk 0:02:57]}  Qf6 {[%clk 0:02:52]} 13. f3 {[%clk 0:02:56]}  Nd7 {[%clk 0:02:51]} 14. g4 {[%clk 0:02:55]}  O-O-O {[%clk 0:02:44]} 15. a4 {[%clk 0:02:54]}  a5 {[%clk 0:02:43]} 16. Nc1 {[%clk 0:02:20]}  h5 {[%clk 0:02:42]} 17. gxh5 {[%clk 0:02:19]}  g4 {[%clk 0:02:42]} 18. Be2 {[%clk 0:02:12]}  Qf4 {[%clk 0:02:40]} 19. Bd1 {[%clk 0:01:53]}  gxf3 {[%clk 0:02:36]} 20. Bxf3 {[%clk 0:01:53]}  Rdg8 {[%clk 0:02:30]} 21. Nd3 {[%clk 0:01:52]}  Qg5 {[%clk 0:02:26]} 22. Qd2 {[%clk 0:01:50]}  Qf6 {[%clk 0:02:24]} 23. O-O-O {[%clk 0:01:47]}  e5 {[%clk 0:02:23]} 24. d5 {[%clk 0:01:47]}  Ba6 {[%clk 0:02:22]} 25. c5 {[%clk 0:01:39]}  Bxd3 {[%clk 0:02:16]} 26. Qxd3 {[%clk 0:01:36]}  Nxc5 {[%clk 0:02:16]} 27. Qc2 {[%clk 0:01:34]}  Qf4+ {[%clk 0:02:11]} 28. Kb2 {[%clk 0:01:34]}  f5 {[%clk 0:02:08]} 29. exf5 {[%clk 0:01:28]}  Nxa4+ {[%clk 0:02:04]} 30. Ka1 {[%clk 0:01:28]}  Nc5 {[%clk 0:01:57]} 31. Rhf1 {[%clk 0:01:16]}  e4 {[%clk 0:01:56]} 32. Be2 {[%clk 0:01:07]}  Qe5 {[%clk 0:01:56]} 33. g4 {[%clk 0:01:07]}  a4 {[%clk 0:01:46]} 34. Ka2 {[%clk 0:01:05]}  e3 {[%clk 0:01:39]} 35. Rd4 {[%clk 0:01:03]}  Kb7 {[%clk 0:01:36]} 36. Bb5 {[%clk 0:01:03]}  Kc8 {[%clk 0:01:09]} 37. f6 {[%clk 0:00:55]}  Rf8 {[%clk 0:01:02]} 38. Rxa4 {[%clk 0:00:42]}  Qxd5+ {[%clk 0:01:01]} 39. c4 {[%clk 0:00:42]}  Qe4 {[%clk 0:00:47]} 40. Qxe4 {[%clk 0:00:27]}  Nxe4 {[%clk 0:00:48]} 41. Ra3 {[%clk 0:00:25]}  Nxf6 {[%clk 0:00:29]} 42. Bc6 {[%clk 0:00:25]}  Kd8 {[%clk 0:00:29]} 43. Rxe3 {[%clk 0:00:20]}  Nxg4 {[%clk 0:00:28]} 44. Rxf8+ {[%clk 0:00:17]}  Rxf8 {[%clk 0:00:29]} 45. Rg3 {[%clk 0:00:16]}  Rf2+ {[%clk 0:00:24]} 46. Ka3 {[%clk 0:00:16]}  Ne5 {[%clk 0:00:24]} 47. Rg8+ {[%clk 0:00:15]}  Ke7 {[%clk 0:00:25]} 48. Bd5 {[%clk 0:00:16]}  Rh2 {[%clk 0:00:24]} 49. Rg7+ {[%clk 0:00:16]}  Kf6 {[%clk 0:00:21]} 50. Rxc7 {[%clk 0:00:16]}  Rxh5 {[%clk 0:00:19]} 51. Rb7 {[%clk 0:00:16]}  Nd3 {[%clk 0:00:08]} 52. Rxb6 {[%clk 0:00:15]}  Ke5 {[%clk 0:00:08]} 53. Rb8 {[%clk 0:00:13]}  Nc5 {[%clk 0:00:08]} 54. Re8+ {[%clk 0:00:13]}  Kd4 {[%clk 0:00:08]} 55. Re2 {[%clk 0:00:13]}  Rh7 {[%clk 0:00:07]} 56. Kb2 {[%clk 0:00:13]}  Rh3 {[%clk 0:00:06]} 57. Rd2+ {[%clk 0:00:13]}  Ke5 {[%clk 0:00:05]} 58. Re2+ {[%clk 0:00:13]}  Kf5 {[%clk 0:00:06]} 59. Kc2 {[%clk 0:00:12]}  Ra3 {[%clk 0:00:05]} 60. Kb2 {[%clk 0:00:11]}  Rb3+ {[%clk 0:00:05]} 61. Kc2 {[%clk 0:00:11]}  Rb6 {[%clk 0:00:06]} 62. Rf2+ {[%clk 0:00:12]}  Ke5 {[%clk 0:00:07]} 63. Rf8 {[%clk 0:00:12]}  Kd4 {[%clk 0:00:06]} 64. Rf4+ {[%clk 0:00:12]}  Ke3 {[%clk 0:00:07]} 65. Rh4 {[%clk 0:00:12]}  Ra6 {[%clk 0:00:06]} 66. Rh3+ {[%clk 0:00:13]}  Kd4 {[%clk 0:00:06]} 67. Kb2 {[%clk 0:00:13]}  Rb6+ {[%clk 0:00:06]} 68. Kc2 {[%clk 0:00:14]}  Rb8 {[%clk 0:00:05]} 69. Rh4+ {[%clk 0:00:14]}  Ke5 {[%clk 0:00:06]} 70. Rh5+ {[%clk 0:00:14]}  Kd4 {[%clk 0:00:06]} 71. Rh6 {[%clk 0:00:15]}  Rd8 {[%clk 0:00:06]} 72. Rh4+ {[%clk 0:00:15]}  Ke5 {[%clk 0:00:06]} 73. Rh6 {[%clk 0:00:16]}  Kf4 {[%clk 0:00:07]} 74. Rh4+ {[%clk 0:00:16]}  Kg5 {[%clk 0:00:07]} 75. Rh7 {[%clk 0:00:17]}  Nd7 {[%clk 0:00:06]} 76. Kc3 {[%clk 0:00:17]}  Nf6 {[%clk 0:00:06]} 77. Rh1 {[%clk 0:00:16]}  Kf5 {[%clk 0:00:06]} 78. Kd4 {[%clk 0:00:16]}  Nd7 {[%clk 0:00:05]} 79. Rf1+ {[%clk 0:00:16]}  Kg5 {[%clk 0:00:05]} 80. Rg1+ {[%clk 0:00:17]}  Kf5 {[%clk 0:00:05]} 81. Rg7 {[%clk 0:00:16]}  Ne5 {[%clk 0:00:04]} 82. Rg3 {[%clk 0:00:13]}  Rb8 {[%clk 0:00:03]} 83. Rg1 {[%clk 0:00:13]}  Rb3 {[%clk 0:00:03]} 84. Rf1+ {[%clk 0:00:13]}  Kg5 {[%clk 0:00:04]} 85. Be4 {[%clk 0:00:12]}  Rb4 {[%clk 0:00:02]} 86. Bd5 {[%clk 0:00:12]}  Kg4 {[%clk 0:00:01]} 87. Rf6 {[%clk 0:00:11]}  Rb6 {[%clk 0:00:00]} 88. Re6 {[%clk 0:00:11]} 1-0


[Site "https://www.chess.com"]

[Event "Titled Tuesday Blitz August 22 Late 2023"]
[White "Yang, Kevin"]
[Black "Kim, Sergey"]
[WhiteFideId "30908485"]
[BlackFideId "13700570"]
[WhiteElo "2427"]
[BlackElo "2614"]
[Result "1-0"]
[Round "6"]
[TimeControl "180+1"]
[Date "2023.08.22"]
[WhiteClock "0:00:08"]
[BlackClock "0:00:06"]
[Board "83"]

1. Nf3 {[%clk 0:03:00]}  Nf6 {[%clk 0:02:59]} 2. g3 {[%clk 0:02:58]}  g6 {[%clk 0:02:59]} 3. b3 {[%clk 0:02:56]}  Bg7 {[%clk 0:02:59]} 4. Bb2 {[%clk 0:02:56]}  d6 {[%clk 0:03:00]} 5. Bg2 {[%clk 0:02:55]}  O-O {[%clk 0:02:59]} 6. d4 {[%clk 0:02:55]}  e5 {[%clk 0:02:58]} 7. dxe5 {[%clk 0:02:54]}  Nfd7 {[%clk 0:02:59]} 8. O-O {[%clk 0:02:53]}  dxe5 {[%clk 0:02:59]} 9. Nc3 {[%clk 0:02:49]}  Nc6 {[%clk 0:02:58]} 10. Nd2 {[%clk 0:02:46]}  a5 {[%clk 0:02:55]} 11. a4 {[%clk 0:02:44]}  Nc5 {[%clk 0:02:52]} 12. Nc4 {[%clk 0:02:42]}  e4 {[%clk 0:02:48]} 13. Nxe4 {[%clk 0:02:38]}  Nxe4 {[%clk 0:02:41]} 14. Bxe4 {[%clk 0:02:38]}  Bxb2 {[%clk 0:02:39]} 15. Nxb2 {[%clk 0:02:36]}  Qe7 {[%clk 0:02:39]} 16. Bg2 {[%clk 0:02:23]}  Rd8 {[%clk 0:02:36]} 17. Nd3 {[%clk 0:02:22]}  Nd4 {[%clk 0:02:29]} 18. e3 {[%clk 0:02:18]}  Nf5 {[%clk 0:02:29]} 19. Qc1 {[%clk 0:02:12]}  h5 {[%clk 0:02:25]} 20. h4 {[%clk 0:02:08]}  c6 {[%clk 0:02:22]} 21. Qa3 {[%clk 0:02:03]}  Qf6 {[%clk 0:02:21]} 22. Qc5 {[%clk 0:02:00]}  Be6 {[%clk 0:02:14]} 23. Rad1 {[%clk 0:01:51]}  Ne7 {[%clk 0:02:08]} 24. Nf4 {[%clk 0:01:34]}  Bg4 {[%clk 0:01:50]} 25. Rxd8+ {[%clk 0:01:33]}  Rxd8 {[%clk 0:01:51]} 26. Qxa5 {[%clk 0:01:32]}  Nf5 {[%clk 0:01:37]} 27. e4 {[%clk 0:00:52]}  Nd4 {[%clk 0:01:33]} 28. f3 {[%clk 0:00:51]}  Bc8 {[%clk 0:01:27]} 29. Rf2 {[%clk 0:00:42]}  Ne6 {[%clk 0:01:10]} 30. Nxe6 {[%clk 0:00:39]}  Bxe6 {[%clk 0:01:09]} 31. e5 {[%clk 0:00:31]}  Rd1+ {[%clk 0:01:05]} 32. Kh2 {[%clk 0:00:30]}  Qf5 {[%clk 0:00:57]} 33. Qa8+ {[%clk 0:00:17]}  Kg7 {[%clk 0:00:54]} 34. Qxb7 {[%clk 0:00:17]}  Qxe5 {[%clk 0:00:51]} 35. Qb6 {[%clk 0:00:06]}  c5 {[%clk 0:00:41]} 36. Qb5 {[%clk 0:00:07]}  Qd4 {[%clk 0:00:36]} 37. Qe2 {[%clk 0:00:06]}  Bf5 {[%clk 0:00:29]} 38. f4 {[%clk 0:00:06]}  Rc1 {[%clk 0:00:26]} 39. Qe5+ {[%clk 0:00:06]}  Qxe5 {[%clk 0:00:25]} 40. fxe5 {[%clk 0:00:07]}  Bxc2 {[%clk 0:00:23]} 41. Bd5 {[%clk 0:00:07]}  Bf5 {[%clk 0:00:22]} 42. Ra2 {[%clk 0:00:07]}  Rd1 {[%clk 0:00:21]} 43. Bg2 {[%clk 0:00:05]}  Be6 {[%clk 0:00:19]} 44. a5 {[%clk 0:00:05]}  Bxb3 {[%clk 0:00:19]} 45. Ra3 {[%clk 0:00:06]}  c4 {[%clk 0:00:10]} 46. a6 {[%clk 0:00:05]}  c3 {[%clk 0:00:11]} 47. Rxb3 {[%clk 0:00:03]}  c2 {[%clk 0:00:11]} 48. Rc3 {[%clk 0:00:03]}  c1=Q {[%clk 0:00:11]} 49. Rxc1 {[%clk 0:00:04]}  Rxc1 {[%clk 0:00:12]} 50. a7 {[%clk 0:00:04]}  Re1 {[%clk 0:00:12]} 51. a8=Q {[%clk 0:00:05]}  Rxe5 {[%clk 0:00:12]} 52. Qa1 {[%clk 0:00:05]}  f6 {[%clk 0:00:12]} 53. Qd4 {[%clk 0:00:05]}  Kh6 {[%clk 0:00:13]} 54. Be4 {[%clk 0:00:06]}  g5 {[%clk 0:00:13]} 55. Kg2 {[%clk 0:00:06]}  g4 {[%clk 0:00:12]} 56. Qe3+ {[%clk 0:00:05]}  Kg7 {[%clk 0:00:12]} 57. Qf4 {[%clk 0:00:05]}  Kf7 {[%clk 0:00:12]} 58. Bf5 {[%clk 0:00:06]}  Kg7 {[%clk 0:00:12]} 59. Kf2 {[%clk 0:00:06]}  Kf7 {[%clk 0:00:12]} 60. Bd3 {[%clk 0:00:06]}  Kg7 {[%clk 0:00:12]} 61. Qd4 {[%clk 0:00:06]}  Re7 {[%clk 0:00:11]} 62. Qd6 {[%clk 0:00:06]}  Rf7 {[%clk 0:00:12]} 63. Bc4 {[%clk 0:00:06]}  Ra7 {[%clk 0:00:12]} 64. Bd5 {[%clk 0:00:06]}  Kg6 {[%clk 0:00:09]} 65. Ke3 {[%clk 0:00:07]}  Kg7 {[%clk 0:00:09]} 66. Kf4 {[%clk 0:00:07]}  Kg6 {[%clk 0:00:09]} 67. Be4+ {[%clk 0:00:06]}  Kg7 {[%clk 0:00:09]} 68. Kf5 {[%clk 0:00:07]}  Ra5+ {[%clk 0:00:09]} 69. Bd5 {[%clk 0:00:07]}  Ra7 {[%clk 0:00:09]} 70. Qe6 {[%clk 0:00:07]}  Ra8 {[%clk 0:00:08]} 71. Qf7+ {[%clk 0:00:07]}  Kh8 {[%clk 0:00:07]} 72. Qxf6+ {[%clk 0:00:07]}  Kh7 {[%clk 0:00:06]} 73. Qg6+ {[%clk 0:00:07]}  Kh8 {[%clk 0:00:06]} 74. Qh6# {[%clk 0:00:08]} 1-0


[Site "https://www.chess.com"]